[Event "46th Barbera del Valles Open-A 2024"]
[Site "Barbera del Valles"]
[Date "2024.07.05"]
[Round "2.1"]
[White "Cuartas, Jaime Alexander"]
[Black "Jarocka, Liwia"]
[Result "1-0"]
[ECO "C11"]
[WhiteElo "2519"]
[BlackElo "2237"]
[Annotator "TA"]
[PlyCount "77"]
[EventDate "2024.06.25"]
[EventType "swiss"]
[EventCountry "ESP"]
[SourceTitle "playchess.com"]
[Source "ChessBase"]
[SourceQuality "1"]
[TimeControl "5400+30"]

{[%evp 13,77,0,25,22,33,14,35,22,29,38,34,18,31,30,40,39,43,42,43,38,48,39,50,50,55,53,58,53,60,38,102,102,101,100,96,92,89,80,105,97,116,125,103,90,146,92,151,53,118,85,441,456,535,532,1468,1421,2167,1708,5821,5717,6594,5793,6415,5510,29982,29967]} 1. e4 {[%emt 0:00:02][%cal Be2e4,Be4e5][%mdl 32]} e6 {[%emt 0:00:13]} 2. d4 {[%emt 0:00:08]} d5 {[%emt 0:00:05]} 3. Nc3 {[%emt 0:00:05]} Nf6 {[%emt 0:00:31]} 4. e5 {[%emt 0:00:25]} Nfd7 {[%emt 0:00:06]} 5. f4 {[%emt 0:00:05]} c5 {[%emt 0:00:25]} 6. Nf3 {[%emt 0:00:09]} Nc6 {[%emt 0:00:08]} 7. Be3 {[%emt 0:00:05]} a6 {[%emt 0:01:15]} 8. Ne2 {[%emt 0:00:42]} b5 {[%emt 0:02:35]} 9. g3 {[%emt 0:00:13]} Bb7 {[%emt 0:01:47]} 10. Bg2 {[%emt 0:00:10] White is slightly better.} cxd4 {[%emt 0:02:19]} 11. Nexd4 {[%emt 0:00:12]} Nxd4 {[%emt 0:00:17]} 12. Bxd4 {[%emt 0:00:46]} Bc5 {[%emt 0:01:13]} 13. c3 {[%emt 0:01:56]} Qb6 {[%emt 0:03:27]} 14. a3 {[%emt 0:00:33]} Rc8 {[%emt 0:04:15]} 15. O-O {[%emt 0:00:27]} O-O {[%emt 0:00:54]} 16. Qd2 {[%emt 0:09:39]} Bxd4+ {[%emt 0:00:51]} 17. cxd4 {[%emt 0:00:40]} Rc7 {[%emt 0:01:46]} 18. Rfc1 {[%emt 0:02:02]} Rfc8 {[%emt 0:00:33]} 19. Bf1 {[%emt 0:00:11]} Nb8 {[%emt 0:01:40]} 20. Rxc7 {[%emt 0:07:38]} Rxc7 {[%emt 0:00:59]} 21. Rc1 {[%emt 0:00:54]} g6 {[%emt 0:33:00] Black is weak on the dark squares} (21... Rxc1 $14 22. Qxc1 g6) 22. Rxc7 $16 {[%emt 0:08:26]} Qxc7 {[%emt 0:00:06]} 23. g4 {[%emt 0:02:16][%cal Of4f5]} Bc8 {[%emt 0:07:10]} 24. Bd3 {[%emt 0:00:22]} Bd7 {[%emt 0:00:25]} 25. Kf2 {[%emt 0:02:21][%cal Of4f5]} Qc8 {[%emt 0:01:05]} 26. h4 {[%emt 0:05:36][%cal Bh2h4,Bh4h5][%mdl 32] White is more active.} Qf8 {[%emt 0:01:13]} 27. h5 {[%emt 0:11:40]} Nc6 {[%emt 0:02:08]} 28. Qc1 {[%emt 0:05:02]} Be8 {[%emt 0:08:09]} (28... Qh6 $142) 29. g5 {[%emt 0:11:23]} ({Better is} 29. f5 {f6 would now be deadly.} exf5 30. gxf5) 29... Qe7 {[%emt 0:06:57]} ({Black should try} 29... gxh5 30. Qh1 a5) 30. Ke3 {[%emt 0:03:19]} (30. h6 $16) 30... Na5 {[%emt 0:03:33]} ({Black should play} 30... gxh5 $14 31. Bb1 Qf8) 31. Qc8 {[%emt 0:03:18]} Nc4+ $2 {[%emt 0:00:41][%mdl 8192] This move loses the game for Black.} (31... gxh5 $16 {is a better chance.} 32. Ke2 (32. Qxa6 Qc7 $11) 32... Qd7 33. Qxa6 Nb3) 32. Bxc4 $18 {[%emt 0:00:22]} dxc4 {[%emt 0:00:03][%mdl 4096] Endgame. KQB-KQN} 33. h6 {[%emt 0:06:20]} ({Not} 33. Qxa6 gxh5 34. Nd2 b4 $16) 33... a5 {[%emt 0:01:06][%cal Ba6a5,Ba5a4][%mdl 32]} 34. Nd2 {[%emt 0:00:33] [#] Strongly threatening Ne4.} Qd7 {[%emt 0:00:59]} 35. Qb8 {[%emt 0:01:49] Black must now prevent Ne4.} Qc6 {[%emt 0:01:01]} 36. Ne4 {[%emt 0:00:27]} Kf8 {[%emt 0:00:03]} 37. Qd6+ {[%emt 0:03:32]} Qxd6 {[%emt 0:00:25]} 38. exd6 {[%emt 0:00:06] [#] Threatening mate with Nf6.} a4 {[%emt 0:00:53]} 39. Kd2 {[%emt 0:00:06] Weighted Error Value: White=0.13 (very precise) /Black=0.74.  Loses game:     	---       	Black=1      Mistake:       	White=2     	Black=4      Inaccurate:     	---       	Black=2      OK:         	White=9     	Black=3      Best:        	White=2     	---} 1-0

[Event "46th Barbera del Valles Open-A 2024"]
[Site "Barbera del Valles"]
[Date "2024.07.05"]
[Round "2.2"]
[White "Fanninger, Leon"]
[Black "Berdayes Ason, Dylan Isidro"]
[Result "1-0"]
[ECO "A17"]
[WhiteElo "2186"]
[BlackElo "2519"]
[Annotator "TA"]
[PlyCount "219"]
[EventDate "2024.06.25"]
[EventType "swiss"]
[EventCountry "ESP"]
[SourceTitle "playchess.com"]
[Source "ChessBase"]
[SourceQuality "1"]
[TimeControl "5400+30"]

{[%evp 9,219,7,0,0,0,0,0,-13,0,0,0,0,0,-5,-2,-6,-4,-11,-2,-20,0,-4,0,-18,-24,-58,-23,-16,30,11,7,12,71,0,20,14,102,96,174,166,207,213,207,208,298,301,323,312,309,279,370,348,339,334,433,250,271,278,252,260,260,277,290,87,109,0,0,0,58,48,197,204,516,470,710,705,724,652,748,746,893,877,872,804,739,56,52,0,707,532,791,1036,900,900,868,359,337,331,297,318,331,337,371,199,191,0,368,93,366,344,307,-425,-338,-643,-624,-753,-141,-171,-173,-185,-183,-172,-179,-189,-197,-175,-164,-184,-176,-183,-96,-104,0,0,0,-161,-183,-218,-213,-229,-164,-172,0,-248,-257,-439,-171,-309,-206,-208,-190,-265,-53,-50,-50,-161,0,-152,29972,29966,29967,29967,29974,29966,29969,630,897,940,966,808,842,491,1002,0,0,0,0,0,0,0,1260,1255,1085,943,1943,1735,1818,545,1772,1423,1998,1215,1722,1405,950,716,1082,0,1005,987,931,893,1524,1240,1362,1400,1432,1425,1505,1419,1954,1268]} 1. Nf3 {[%emt 0:00:16]} d5 {[%emt 0:00:08]} 2. e3 {[%emt 0:00:22]} Nf6 {[%emt 0:00:03]} 3. c4 {[%emt 0:00:09]} e6 {[%emt 0:00:02]} 4. Nc3 {[%emt 0:00:16]} Bd6 {[%emt 0:00:06]} 5. b3 {[%emt 0:01:30]} O-O {[%emt 0:00:07]} 6. Bb2 {[%emt 0:00:11]} Re8 {[%emt 0:00:03]} 7. d4 {[%emt 0:17:24]} b6 {[%emt 0:00:08]} 8. cxd5 {[%emt 0:01:43] The position is equal.} exd5 {[%emt 0:00:10]} 9. Bd3 {[%emt 0:05:31]} Bb7 {[%emt 0:01:02]} 10. O-O {[%emt 0:00:33]} Nbd7 {[%emt 0:00:08]} 11. Rc1 {[%emt 0:05:00]} a6 {[%emt 0:00:03] Dodges Nb5} 12. Ne2 {[%emt 0:04:36]} Qe7 {[%emt 0:13:30]} 13. Rc2 {[%emt 0:24:50]} Ne4 {[%emt 0:04:06]} 14. Qa1 {[%emt 0:03:36]} f6 {[%emt 0:07:52]} 15. a4 {[%emt 0:02:26]} Rac8 {[%emt 0:03:22]} 16. a5 {[%emt 0:05:40]} b5 {[%emt 0:00:14]} 17. Qc1 {[%emt 0:05:53]} g6 {[%emt 0:03:17]} (17... c5 $5 18. dxc5 Ndxc5 $15) 18. Nf4 $1 {[%emt 0:05:51][%cal Be2f4,Bf4h5,Bh5g3][%mdl 32]} g5 {[%emt 0:13:39]} (18... c6 {feels stronger.}) 19. Nh5 $11 {[%emt 0:02:23]} Qf7 {[%emt 0:05:54]} 20. Ng3 {[%emt 0:00:11]} Qg6 {[%emt 0:00:10] Wards off Nf5} (20... c5 $11) 21. Ne1 {[%emt 0:01:48]} (21. Ba3 $16) 21... f5 {[%emt 0:01:25]} 22. Be2 {[%emt 0:01:44] Black should prevent Bh5.} f4 {[%emt 0:09:36]} (22... g4 $11) 23. exf4 {[%emt 0:03:44]} Bxf4 {[%emt 0:04:29]} (23... gxf4 $16 24. Bh5 Qe6) 24. Qd1 $1 $18 {[%emt 0:01:52]} Rf8 {[%emt 0:05:28]} 25. Nd3 {[%emt 0:00:32]} Ndf6 {[%emt 0:03:14]} 26. Ne5 {[%emt 0:01:08]} Qe8 {[%emt 0:00:02]} (26... Qh6 $142 27. Bc1 Bxg3 28. fxg3 c6) 27. Nxe4 {[%emt 0:03:16]} dxe4 {[%emt 0:02:35]} 28. g3 {[%emt 0:00:17]} Bxe5 {[%emt 0:03:03]} 29. dxe5 {[%emt 0:00:01]} Nd5 {[%emt 0:00:19]} 30. Bh5 {[%emt 0:01:34]} Qe7 {[%emt 0:00:16] [#]} 31. e6 $1 {[%emt 0:01:10][%mdl 512]} c5 {[%emt 0:00:26]} (31... Nf6 32. Bf7+) 32. Bf7+ {[%emt 0:01:03]} (32. Qg4 $142 Nb4 33. Bf7+ Rxf7 34. exf7+ Kxf7 35. Rd1) 32... Rxf7 {[%emt 0:21:33]} 33. exf7+ {[%emt 0:00:00]} Qxf7 {[%emt 0:00:00]} 34. Qg4 {[%emt 0:00:03][%cal Oc2d2] Wards off Qf5. Hoping for Rd2!} h6 {[%emt 0:00:00]} 35. h4 $1 {[%emt 0:00:42]} (35. Qxe4 $2 Nf4 $19) 35... Rf8 {[%emt 0:00:00]} 36. Re2 {[%emt 0:00:31] Against Ne3} (36. hxg5 $18 {and White stays clearly on top.} Qf5 37. Qxf5 (37. gxh6+ $2 Qxg4 38. Ba3 b4 $19) 37... Rxf5 38. Rxc5 (38. gxh6 Nb4 $18) 38... Rxg5 39. Bc1) 36... e3 $16 {[%emt 0:00:00][%cal Od5c3]} 37. f4 {[%emt 0:00:41]} (37. f3 $1 $16 Bc8 38. Qe4) 37... Bc8 $11 {[%emt 0:00:00]} 38. Qf3 {[%emt 0:00:02]} g4 {[%emt 0:00:00]} (38... Bb7 $11) 39. Qe4 $14 {[%emt 0:00:32]} Re8 {[%emt 0:00:00] Repels Qe5} (39... Qf5 $14 40. Rxe3 Nxe3 41. Qxe3 Rd8) 40. Qc2 $18 {[%emt 0:00:37]} Bf5 $2 {[%emt 0:00:00]} (40... Qf5) 41. Qxc5 {[%emt 0:00:21]} Be4 {[%emt 0:00:00]} (41... Bd3 $2 42. Qd4 Qd7 43. Qxd3) (41... Bc8 $142 42. Qd4 Kh7) 42. Qd4 {[%emt 0:00:24][%csl Gb2][%cal Rd4h8]} Kh7 {[%emt 0:00:00]} 43. Rc1 {[%emt 0:00:59]} Bf3 {[%emt 0:00:00]} 44. Ree1 {[%emt 0:00:04]} h5 {[%emt 0:00:00]} 45. b4 {[%emt 0:00:11]} e2 {[%emt 0:00:00]} 46. Rc5 {[%emt 0:00:43]} Rd8 {[%emt 0:00:00]} 47. Qe5 $2 {[%emt 0:00:37]} (47. Kh2 $18 Re8 48. Kg1) 47... Re8 $1 $14 {[%emt 0:00:00]} 48. Qd4 {[%emt 0:00:29][%mdl 8192]} (48. Qd6 $14 Qe6 49. Qxe6 Rxe6 50. f5) 48... Rd8 $1 $18 {[%emt 0:00:00]} (48... Ne3 49. Rg5 (49. Rxh5+ Kg6 $18) 49... Nc2 50. Rg7+ Kh6 51. Qc3 (51. Rxf7 Nxd4 52. Bxd4 Kg6 $18) 51... Re3 52. Rxf7 (52. Qxc2 Qxg7 53. Bxg7+ Kxg7 $18) 52... Rxc3 53. Bxc3) 49. Qd3+ {[%emt 0:00:44]} Kg8 {[%emt 0:00:12][%cal Bh7g8,Bg8f8,Bf8f7,Bf7g6][%mdl 32]} 50. Rc6 {[%emt 0:00:42] Repels Qe6} Qa7+ {[%emt 0:01:39]} 51. Bd4 {[%emt 0:00:18]} Ne7 {[%emt 0:00:44]} 52. Rg6+ {[%emt 0:00:41]} (52. Bxa7 Rxd3 53. Rxa6 Nf5 $16) (52. Qb3+ $142 Bd5 53. Qb2 (53. Bxa7 Bxb3 54. Rxa6 Bc4 $18) 53... Qxd4+ 54. Qxd4 Nxc6 55. Qf6) 52... Kf8 {[%emt 0:00:13]} 53. Bxa7 {[%emt 0:00:38]} Rxd3 {[%emt 0:00:03]} 54. Bc5 {[%emt 0:00:13]} (54. Rxa6 Kf7 55. Bc5 Nf5) (54. Rf6+ Kg7 55. Rxa6 Nf5 $18) 54... Kf7 {[%emt 0:00:36]} 55. Rxa6 {[%emt 0:00:20]} Nd5 {[%emt 0:00:23]} 56. Ra7+ {[%emt 0:00:50]} (56. Rd6 $142) 56... Kg6 {[%emt 0:01:00]} 57. Ra6+ $2 {[%emt 0:00:31]} (57. a6) 57... Kf7 $1 {[%emt 0:00:42]} 58. Rh6 $2 {[%emt 0:00:05]} (58. Ra7+ Kg6 59. Ra6+ Kf7 $18) (58. Rd6 $1 $18 {is the precise move to win.}) 58... Rd1 $2 {[%emt 0:00:00][%mdl 8192]} (58... Nf6 $16) 59. Kf2 $1 {[%emt 0:01:00]} Nc3 {[%emt 0:00:09] [#]} 60. Rxe2 {[%emt 0:00:31][%mdl 8704]} Nxe2 {[%emt 0:01:12]} (60... Bxe2 61. Rd6) 61. a6 $2 {[%emt 0:00:30]} (61. Rxh5 Nc3 62. Ke3 Nd5+ 63. Kf2 Rd2+ 64. Ke1 Re2+ 65. Kf1) 61... Nc3 $19 {[%emt 0:01:05]} 62. a7 {[%emt 0:00:29]} Ra1 $2 {[%emt 0:00:44]} (62... Ne4+ $19 {is more deadly.} 63. Ke3 Nxg3) 63. Rxh5 {[%emt 0:00:31]} Ne4+ {[%emt 0:01:09]} 64. Ke3 {[%emt 0:00:04]} Nxg3 {[%emt 0:00:15]} 65. Rh8 {[%emt 0:00:34][%cal Of4f5]} Nf5+ {[%emt 0:00:18]} 66. Kd3 {[%emt 0:00:48]} g3 $1 {[%emt 0:03:13] White must now prevent ...Rd1+.} 67. Rf8+ {[%emt 0:00:14]} Ke6 {[%emt 0:00:01][%cal Og3g2]} 68. h5 {[%emt 0:00:26]} g2 $1 {[%emt 0:00:36] aiming for ...Rd1+.} (68... Bxh5 69. a8=Q (69. a8=B Ra3+ 70. Kd2 Bf3 $15) (69. a8=R Ra4 $18) 69... Rxa8 70. Rxa8 $14) 69. Rg8 {[%emt 0:00:13][%cal Oh5h6]} Ra3+ {[%emt 0:01:42]} (69... Bxh5 70. a8=Q (70. a8=B Bf7 $17) 70... Rxa8 71. Rxa8 $16) (69... Kd7 $19 70. Kc2 Be4+ (70... Bxh5 $2 71. a8=R $18) (70... Bd5 $2 71. Rg6 $19) 71. Kb2 Rb1+ 72. Ka2 Rc1) 70. Kd2 $17 {[%emt 0:00:26]} Kf6 {[%emt 0:01:19] Prevents h6.} (70... Bxh5 71. a8=Q (71. a8=B Bf7 $15) 71... Rxa8 72. Rxa8 $16) (70... Kd7 $1 $17 {...Ra2+ would now be deadly.} 71. Rg6 Ra1 (71... Bxh5 72. Rxg2 Bf3 73. Rg5 $11)) 71. Rf8+ $11 {[%emt 0:00:10]} Ke6 {[%emt 0:00:02][%cal Of5d6] Threatens to win with ...Nd6!} 72. Re8+ $2 {[%emt 0:00:38]} (72. Rg8 $1 $11) 72... Kd7 $19 {[%emt 0:00:52]} 73. Rg8 {[%emt 0:01:11]} Be4 {[%emt 0:00:01]} (73... Bxh5 74. a8=Q (74. a8=B Ra2+ 75. Kc1 Bf7 $17) 74... Rxa8 75. Rxa8 $16) 74. Rg5 {[%emt 0:00:46]} Rd3+ {[%emt 0:00:58]} 75. Ke2 {[%emt 0:00:20]} Ra3 {[%emt 0:01:01]} (75... Rc3 $142 $1 76. Kd2 (76. Rxf5 $2 Rc2+ 77. Ke1 Rxc5 $19) 76... Rc2+ 77. Kd1 Rc3 (77... Ra2 78. Rg6 $17)) 76. Kd2 $1 {[%emt 0:00:40]} Ra2+ $1 {[%emt 0:00:52]} 77. Kc3 $2 {[%emt 0:00:26]} (77. Kc1 {is a better defense.}) 77... Ke6 $2 {[%emt 0:00:56]} (77... Rc2+ 78. Kb3 Rc4) 78. Kb3 {[%emt 0:00:32]} (78. h6 $142) 78... Bd5+ {[%emt 0:00:18]} 79. Kc3 {[%emt 0:00:01]} Ra3+ {[%emt 0:00:41]} 80. Kd2 {[%emt 0:00:18] [#]} (80. Kb2 $142 Rb3+ 81. Kc1) 80... Be4 $2 {[%emt 0:00:12]} (80... Ng3 $1 $19 81. Re5+ Kf7) 81. h6 $1 $15 {[%emt 0:00:35]} Ra2+ {[%emt 0:00:42]} (81... Nxh6 $2 82. Re5+ Kd7 83. Rxe4 $18 (83. Re7+ Kc6 $18)) 82. Kc3 {[%emt 0:00:12] [#]} ({Better is} 82. Kc1 $15) 82... Rc2+ $1 $19 {[%emt 0:00:36]} (82... Nxh6 $2 83. Re5+ Kf6 84. Rxe4 $18) (82... Ra3+ 83. Kd2 $15) 83. Kb3 {[%emt 0:00:02] The board is on fire.} Nxh6 $2 {[%emt 0:00:33]} (83... Rd2 $17 84. Rg6+ Kf7) 84. Re5+ {[%emt 0:01:52]} Kf6 {[%emt 0:00:12]} 85. Rxe4 {[%emt 0:00:03]} Rxc5 {[%emt 0:00:02]} 86. a8=Q {[%emt 0:00:24]} (86. a8=B $2 g1=Q (86... g1=R 87. bxc5 Rc1 88. Re5 $14) 87. bxc5 Qb1+ (87... Qxc5 $2 88. Re5 $19) 88. Kc3 Qa1+ 89. Kc2 Qxa8 $19) 86... g1=Q {[%emt 0:00:05]} 87. Qf8+ {[%emt 0:00:43]} ({Worse is} 87. bxc5 Qb1+ 88. Kc3 Qc1+ 89. Kb3 Qb1+ 90. Kc3 Qc1+ 91. Kd3 Qd1+ 92. Kc3 Qc1+ $11) (87. Qh8+ $142 Kf5 88. Qh7+ (88. bxc5 Qb1+ 89. Ka3 Kxe4 $11) 88... Qg6 89. Qxg6+ Kxg6 90. bxc5 Kf6 91. c6 Nf5 92. c7 (92. Kb4 Nd6 93. Re5 Nc8 94. Kxb5 Kg7 95. c7 Kf8 96. Kc5 Kf7)) 87... Nf7 $18 {[%emt 0:00:02] ( -> ...Qb1+)} 88. Qe7+ {[%emt 0:00:50]} (88. bxc5 $2 Qb1+ 89. Ka3 Qxe4 $17) 88... Kg7 {[%emt 0:00:14]} 89. bxc5 {[%emt 0:00:20] KQR-KQN} Qb1+ {[%emt 0:00:59]} 90. Kc3 {[%emt 0:00:38]} Qa1+ {[%emt 0:00:03]} 91. Kd3 $2 {[%emt 0:00:15]} (91. Kc2 $18 Qa2+ 92. Kd3) 91... Qd1+ $1 $11 {[%emt 0:00:41]} 92. Ke3 {[%emt 0:00:30]} ({Less strong is} 92. Kc3 Qa1+ 93. Kd2 Qa2+ 94. Ke3 Qb3+ 95. Kf2 b4 $18) 92... Qe1+ {[%emt 0:00:06]} 93. Kd3 {[%emt 0:00:47]} Qd1+ $1 {[%emt 0:00:02]} 94. Kc3 $2 {[%emt 0:00:10][%mdl 8192]} (94. Ke3 $11 Qe1+ 95. Kd3) 94... Qa1+ $18 {[%emt 0:00:04]} 95. Kd2 {[%emt 0:00:18]} Qb2+ {[%emt 0:00:30]} 96. Ke1 {[%emt 0:00:31]} Qc1+ {[%emt 0:00:14]} 97. Kf2 {[%emt 0:00:07]} Qd2+ {[%emt 0:00:07]} 98. Kf3 {[%emt 0:00:18]} (98. Kg3 $142 Qc2 99. Re2 Qg6+ 100. Kf2) 98... Qd3+ {[%emt 0:00:55]} 99. Kg2 {[%emt 0:00:23]} Qd2+ {[%emt 0:00:24]} 100. Kg3 {[%emt 0:00:43] Re2 is the strong threat.} b4 {[%emt 0:00:37]} 101. Re3 {[%emt 0:01:31]} Qc2 {[%emt 0:00:38]} 102. Kh3 {[%emt 0:00:28] Intending Rg3+ and mate.} Qf5+ {[%emt 0:00:27]} 103. Kg3 $2 {[%emt 0:00:17]} (103. Kh2 $18 {Rg3+ would kill now.} Qh7+ 104. Kg2 Qc2+ 105. Kg1 Qg6+ 106. Kf2 Qc2+ 107. Re2) 103... Qg6+ $2 {[%emt 0:00:59][%mdl 8192]} (103... Qc2 $11 104. Re2 Qg6+ 105. Kf2 b3) 104. Kf2 {[%emt 0:00:29] White threatens Rg3 and mate. White is clearly winning.} Qc2+ {[%emt 0:00:02]} 105. Re2 {[%emt 0:00:44]} Qh7 {[%emt 0:00:05]} 106. Qe3 {[%emt 0:00:31] And now c6 would win.} Qh2+ {[%emt 0:00:23]} 107. Ke1 {[%emt 0:00:09]} Qh1+ {[%emt 0:00:04]} 108. Kd2 {[%emt 0:00:03]} Qd5+ {[%emt 0:00:11]} 109. Kc1 {[%emt 0:00:39]} b3 {[%emt 0:00:58]} 110. Kb2 {[%emt 0:00:21] What a bad dream for Black.   Weighted Error Value: White=0.83/Black=0.44.  Loses game:     	White=1     	Black=2      Missed win:     	White=3     	Black=1      Mistake:       	White=11    	Black=13     Inaccurate:     	White=2     	Black=5      OK:         	White=14    	Black=18     Best:        	White=12    	Black=11     Strong:       	White=5     	Black=7      Brilliant:      	White=1     	---} 1-0

[Event "46th Barbera del Valles Open-A 2024"]
[Site "Barbera del Valles"]
[Date "2024.07.05"]
[Round "2.3"]
[White "Alsina Leal, Daniel"]
[Black "Singh, Siddharth"]
[Result "1/2-1/2"]
[ECO "B99"]
[WhiteElo "2512"]
[BlackElo "2050"]
[Annotator "RC"]
[PlyCount "124"]
[EventDate "2024.06.25"]
[EventType "swiss"]
[EventCountry "ESP"]
[SourceTitle "playchess.com"]
[Source "ChessBase"]
[SourceQuality "1"]
[TimeControl "5400+30"]

1. e4 {[%emt 0:00:03]} c5 {[%emt 0:00:10]} 2. Nf3 {[%emt 0:00:08]} d6 {[%emt 0:00:06]} 3. d4 {[%emt 0:00:34]} cxd4 {[%emt 0:00:08]} 4. Nxd4 {[%emt 0:00:04]} Nf6 {[%emt 0:00:08]} 5. Nc3 {[%emt 0:00:11]} a6 {[%emt 0:00:06]} 6. Bg5 {[%emt 0:01:59]} e6 {[%emt 0:00:09]} 7. f4 {[%emt 0:00:19]} Be7 {[%emt 0:00:12]} 8. Qf3 {[%emt 0:00:17]} Qc7 {[%emt 0:00:11]} 9. O-O-O {[%emt 0:00:24]} Nbd7 {[%emt 0:00:08]} 10. g4 {[%emt 0:00:28]} h6 {[%emt 0:00:55]} 11. Qh3 {[%emt 0:01:07]} Nc5 {[%emt 0:00:17]} 12. Bg2 {[%emt 0:02:53]} Rg8 {[%emt 0:00:12]} 13. Bh4 {[%emt 0:02:53]} g5 {[%emt 0:00:45]} 14. fxg5 {[%emt 0:00:48]} hxg5 {[%emt 0:00:09]} 15. Bg3 {[%emt 0:01:23]} Ncd7 {[%emt 0:00:21]} 16. Nf3 {[%emt 0:18:28]} e5 {[%emt 0:00:08]} 17. Nd2 {[%emt 0:05:18]} Nb6 {[%emt 0:00:14]} 18. Bf3 {[%emt 0:01:38]} Be6 {[%emt 0:00:09]} 19. Kb1 {[%emt 0:26:15]} Rc8 {[%emt 0:04:35]} 20. Nf1 {[%emt 0:13:39]} Na4 {[%emt 0:10:01]} 21. Rd3 {[%emt 0:13:31]} Qc4 {[%emt 0:00:38]} 22. Ne3 {[%emt 0:02:38]} Nxc3+ {[%emt 0:00:21]} 23. bxc3 {[%emt 0:01:50]} Qxa2+ {[%emt 0:00:53]} 24. Kc1 {[%emt 0:00:04]} Nd7 {[%emt 0:07:11]} 25. Qh7 {[%emt 0:01:05]} Rf8 {[%emt 0:00:21]} 26. Nf5 {[%emt 0:02:05]} Bxf5 {[%emt 0:02:10]} 27. Qxf5 {[%emt 0:00:33]} Qe6 {[%emt 0:00:07]} 28. Bf2 {[%emt 0:01:43]} Nc5 {[%emt 0:00:47]} 29. Bxc5 {[%emt 0:00:40]} Rxc5 {[%emt 0:00:13]} 30. Qxe6 {[%emt 0:01:58]} fxe6 {[%emt 1:13:45]} 31. Kd2 Kd7 {[%emt 0:00:00]} 32. h3 {[%emt 0:01:34]} a5 {[%emt 0:00:00]} 33. Kc1 Rfc8 {[%emt 0:01:30]} 34. Kb2 {[%emt 0:00:01]} Rb5+ {[%emt 0:00:00]} 35. Kc1 {[%emt 0:01:29]} Rc4 {[%emt 0:00:00]} 36. Re3 {[%emt 0:00:00]} Ra4 37. Rd3 {[%emt 0:00:20]} Rc4 {[%emt 0:00:00]} 38. Re3 {[%emt 0:00:15]} Ra4 {[%emt 0:00:00]} 39. Kd2 {[%emt 0:00:30]} Rb2 {[%emt 0:00:00]} 40. Be2 {[%emt 0:00:23]} Raa2 {[%emt 0:00:00]} 41. Bd3 {[%emt 0:00:04]} b5 {[%emt 0:00:00]} 42. Ree1 {[%emt 0:01:23]} b4 {[%emt 0:00:00]} 43. cxb4 {[%emt 0:00:06]} axb4 {[%emt 0:00:00]} 44. Rb1 {[%emt 0:00:50]} d5 {[%emt 0:00:00]} 45. Rxb2 {[%emt 0:00:11]} Rxb2 {[%emt 0:00:00]} 46. Ra1 {[%emt 0:00:35]} Bc5 {[%emt 0:00:00]} 47. Ra5 {[%emt 0:00:48]} Bb6 {[%emt 0:00:00]} 48. Rb5 {[%emt 0:00:33]} Kc6 {[%emt 0:00:00]} 49. Kc1 {[%emt 0:00:18]} Bd4 {[%emt 0:00:00]} 50. Ra5 {[%emt 0:00:09]} b3 {[%emt 0:00:00]} 51. Ra4 {[%emt 0:00:45]} Ra2 {[%emt 0:00:00]} 52. cxb3 {[%emt 0:00:31]} Rh2 {[%emt 0:00:00]} 53. Ra6+ {[%emt 0:00:31]} Kd7 {[%emt 0:00:00]} 54. Bb5+ {[%emt 0:00:45]} Ke7 {[%emt 0:00:00]} 55. Bc6 {[%emt 0:00:28]} Rxh3 {[%emt 0:00:00]} 56. exd5 {[%emt 0:00:08]} Rxb3 {[%emt 0:00:00]} 57. d6+ {[%emt 0:00:46]} Kxd6 {[%emt 0:00:00]} 58. Ba4+ {[%emt 0:00:19]} Rb6 {[%emt 0:00:00]} 59. Rxb6+ {[%emt 0:00:07]} Bxb6 {[%emt 0:00:00]} 60. Kd1 {[%emt 0:00:14]} e4 {[%emt 0:00:00]} 61. Ke2 {[%emt 0:00:05]} Ke5 {[%emt 0:00:00]} 62. Bd7 {[%emt 0:00:32]} Ba7 {[%emt 0:14:30]} 1/2-1/2